bitfinex/quotes_ETHUSD_20240730
["timestamp","ask_amount","ask_price","bid_price","bid_amount"]
[1722351912129,0.55,3310.2,3309.3,3.569426]
[1722351912451,3.57096,3310.2,3309.3,3.569426]
[1722351912993,3.0211,3310.1,3309.3,3.569426]
[1722351913294,0.55,3310.2,3309.3,3.569426]
[1722351913494,3.1681554,3311.0,3309.4,0.6016426]
[1722351913495,0.55,3310.4,3309.4,0.6016426]
[1722351913700,3.02149,3309.7,3309.2,2.447]
[1722351913922,3.02122,3310.0,3309.2,2.447]
[1722351914295,3.02074,3310.5,3309.3,3.02173]
[1722351914496,3.02066,3310.6,3309.2,2.447]
[1722351914753,3.4725257,3310.9,3309.2,2.447]
[1722351914913,3.02093,3310.3,3309.3,0.546892]
[1722351915238,3.0206,3310.6,3309.2,2.447]
[1722351915395,3.0206,3310.6,3307.4,3.97060617]
[1722351915396,2.3675,3310.1,3308.6,2.3746]
[1722351915602,3.02199,3309.1,3308.6,2.3746]
[1722351915834,6.04403,3309.1,3308.6,2.3746]
[1722351915997,3.02199,3309.1,3308.6,2.3746]
[1722351916194,3.02146,3309.7,3308.7,0.06044379]
[1722351916436,3.02146,3309.7,3308.6,2.61206]
[1722351916437,0.55,3309.6,3308.6,2.61206]
[1722351916697,0.55,3309.6,3308.6,2.3746]
[1722351917134,3.0217,3309.4,3308.6,2.3746]
[1722351917295,0.55,3309.6,3308.6,2.3746]
[1722351917500,6.02079,3310.4,3308.7,0.0604421]
[1722351917725,3.02122,3310.0,3308.8,0.30393739]
[1722351917929,6.04243,3310.0,3308.8,3.30393739]
[1722351918127,3.02136,3309.8,3308.8,3.30393739]
[1722351918437,10.49103,3310.2,3308.9,3.02208]
[1722351918656,10.49103,3310.2,3309.0,3.0]
[1722351918801,3.02125,3309.9,3309.1,35.602208]
[1722351918999,10.491,3310.2,3309.1,35.602208]
[1722351919261,7.47,3310.2,3309.2,0.06042576]
[1722351919440,7.47,3310.2,3309.3,2.3226]
[1722351919598,3.0211,3310.1,3309.3,2.3226]
[1722351919799,3.02119,3310.0,3309.3,2.3226]
[1722351920028,7.47,3310.2,3309.3,2.3226]
[1722351920029,3.0213,3309.9,3309.3,2.3226]
[1722351920255,3.02114,3310.1,3309.3,2.3226]
[1722351920396,3.02114,3310.1,3309.3,5.37161288]
[1722351920809,3.02106,3310.1,3309.3,2.3226]
[1722351921020,0.55,3310.0,3309.3,2.3226]
[1722351921207,7.47,3310.2,3309.3,2.3226]
[1722351921208,0.55,3310.1,3309.3,2.3226]
[1722351921620,7.47,3310.2,3309.4,0.06042925]
[1722351921819,7.47,3310.2,3309.5,0.23830293]
[1722351922008,7.47,3310.2,3309.6,0.06042373]
[1722351922205,7.47,3310.2,3309.5,0.23830293]
[1722351922511,3.02115,3310.0,3309.5,0.23830293]
[1722351922760,3.02115,3310.0,3309.3,2.3226]
[1722351922970,3.02119,3310.0,3309.3,2.3226]
[1722351923189,3.02117,3310.0,3309.3,2.3226]
[1722351923392,10.49101,3310.2,3309.3,2.3226]
[1722351923572,7.47,3310.2,3309.4,0.06042599]
[1722351923901,7.47,3310.2,3309.4,3.08204593]
[1722351924183,7.47,3310.2,3309.4,3.0]
[1722351924382,3.02129,3309.9,3309.3,2.3226]
[1722351924535,3.0211,3310.1,3309.3,2.3226]
[1722351925370,7.47,3310.2,3309.3,2.3226]
[1722351925577,7.47,3310.2,3308.9,3.0]
[1722351925578,3.02156,3309.6,3308.9,3.0]
[1722351925751,3.02156,3309.6,3308.7,2.4285]
[1722351925953,3.02149,3309.7,3308.7,2.4285]
[1722351926183,3.02156,3309.6,3308.8,0.845087]
[1722351926563,3.02156,3309.6,3308.7,2.4285]
[1722351926564,3.02175,3309.4,3308.7,2.4285]
[1722351927086,3.02202,3309.1,3308.7,2.4285]
[1722351927389,0.55,3309.7,3308.7,2.4285]
[1722351927693,3.02152,3309.6,3308.7,2.4285]
[1722351927909,3.57161,3309.5,3308.7,2.4285]
[1722351928189,0.55,3309.4,3308.8,0.24285]
[1722351928564,3.02146,3309.7,3308.8,0.24285]
[1722351928565,0.55,3309.6,3308.8,0.30329061]
[1722351928761,0.55,3309.7,3308.9,0.57541206]
[1722351928963,7.47,3309.8,3309.0,0.0604352]
[1722351929141,7.47,3309.8,3308.9,0.57541206]
[1722351929499,7.47,3309.8,3308.8,0.24285]
[1722351929784,3.02171,3309.4,3308.8,3.24285]
[1722351930461,3.02161,3309.5,3308.8,3.24285]
[1722351930662,10.49138,3309.8,3308.8,3.0]
[1722351930860,3.02152,3309.6,3308.7,5.4285]
[1722351931042,7.47,3309.8,3308.7,2.4285]
[1722351931243,3.02143,3309.7,3308.8,0.24285]
[1722351931483,3.02174,3309.4,3308.7,2.4285]
[1722351931687,7.47,3309.8,3308.7,2.4285]
[1722351931904,3.02194,3309.2,3308.2,2.457]
[1722351932203,3.02193,3309.2,3308.2,2.457]
[1722351932341,3.02161,3309.5,3308.4,3.02256]
[1722351932538,3.02161,3309.5,3308.3,0.6233705]
[1722351932539,0.55,3309.4,3308.3,0.6233705]
[1722351932801,0.55,3309.4,3308.5,0.07529711]
[1722351933008,0.55,3309.4,3308.3,6.593301]
[1722351933210,0.55,3309.4,3308.4,3.9275601]
[1722351933348,0.55,3309.4,3308.4,0.9803734]
[1722351933687,3.02147,3309.7,3308.6,3.02237]
[1722351933902,7.47,3309.8,3308.6,3.02237]
[1722351934203,7.47,3309.8,3308.7,3.09757521]
[1722351934402,10.49138,3309.8,3308.8,0.06043562]
[1722351934608,7.47,3309.8,3309.0,2.4948]
[1722351934773,7.47,3309.8,3309.2,3.02179]
[1722351934973,7.47,3309.8,3309.2,3.02187]
[1722351935179,7.47,3309.8,3309.1,0.3245126]
[1722351935180,19.76,3310.5,3309.3,0.07494025]
[1722351935420,7.47,3310.5,3309.3,0.07494025]
[1722351935633,7.47,3310.5,3309.8,2.3995]
[1722351935764,22.78989,3311.4,3309.8,2.3995]
[1722351935765,3.1682054,3311.0,3309.9,3.62369288]
[1722351935963,3.1682054,3311.0,3310.0,6.02111]
[1722351935964,0.1478954,3311.0,3310.0,6.02111]
[1722351936221,0.1478954,3311.0,3310.1,0.06041059]
[1722351936720,0.1478954,3311.0,3310.2,3.09537887]
[1722351936931,0.1478954,3311.0,3310.3,0.06040895]
[1722351937063,0.1478954,3311.0,3310.7,3.02042]
[1722351937263,0.1478954,3311.0,3310.9,3.02032]
[1722351937464,0.1478954,3311.0,3310.9,3.0]
[1722351937703,0.1478954,3311.0,3310.9,3.07395701]
[1722351937919,0.1478954,3311.0,3310.9,0.07395701]
[1722351938512,0.1478954,3311.0,3310.9,3.09427701]
[1722351938809,0.1478954,3311.0,3310.9,9.20014571]
[1722351939708,0.1478954,3311.0,3310.9,12.22046571]
[1722351940213,0.1478954,3311.0,3310.9,9.20014571]
[1722351940380,0.1478954,3311.0,3310.9,6.17982571]
[1722351940767,0.1478954,3311.0,3310.9,9.20014571]
[1722351941459,0.1478954,3311.0,3310.9,6.17982571]
[1722351941760,0.1478954,3311.0,3310.9,3.17982571]
[1722351941964,0.1478954,3311.0,3310.9,2.56835701]
[1722351942392,0.1478954,3311.0,3310.9,5.58867701]
[1722351942563,0.1478954,3311.0,3310.9,2.56835701]
[1722351942798,0.1478954,3311.0,3310.9,11.66938878]
[1722351943109,0.1478954,3311.0,3310.9,11.60899701]
[1722351943319,0.1478954,3311.0,3310.9,13.07193471]
[1722351943687,0.1478954,3311.0,3310.9,13.37563471]
[1722351943879,0.1478954,3311.0,3310.9,16.39595471]
[1722351944414,0.1478954,3311.0,3310.9,13.37563471]
[1722351944608,0.1478954,3311.0,3310.9,7.03129471]
[1722351944906,0.1478954,3311.0,3310.9,16.09225471]
[1722351945116,0.1478954,3311.0,3310.9,16.64225471]
[1722351945404,0.1478954,3311.0,3310.9,13.07193471]
[1722351945714,0.1478954,3311.0,3310.9,13.37563471]
[1722351945924,0.1478954,3311.0,3310.9,16.39595471]
[1722351946567,0.1478954,3311.0,3310.9,51.39595471]
[1722351946805,0.1478954,3311.0,3310.9,54.41627471]
[1722351947108,0.1478954,3311.0,3310.9,54.96627471]
[1722351947311,0.1478954,3311.0,3310.9,51.94595471]
[1722351947997,0.1478954,3311.0,3310.9,54.96627471]
[1722351948205,0.1478954,3311.0,3310.9,51.94595471]
[1722351948513,7.47,3312.9,3312.0,5.37767]
[1722351948712,12.29,3313.4,3312.3,3.01903]
[1722351948713,7.47,3313.4,3312.3,3.01903]
[1722351949011,10.48806,3313.4,3312.4,0.06979097]
[1722351949396,7.47,3313.4,3312.4,3.08874097]
[1722351949785,7.47,3313.4,3312.6,3.01877]
[1722351950010,7.47,3313.4,3312.5,0.06961925]
[1722351950211,7.47,3313.4,3312.6,3.01872]
[1722351950411,7.47,3313.4,3312.8,3.01854]
[1722351950708,2.3741,3314.5,3312.7,0.06943917]
[1722351950709,10.48747,3314.1,3312.7,0.06943917]
[1722351950909,7.47,3314.1,3312.9,0.06934702]
[1722351951114,7.47,3314.1,3312.6,3.0]
[1722351951115,7.47,3314.1,3312.8,0.0693931]
[1722351951282,3.01832,3313.1,3313.0,0.06930095]
[1722351951608,3.01856,3312.9,3311.6,3.01968]
[1722351951819,3.01865,3312.8,3311.6,3.01968]
[1722351951994,3.01866,3312.8,3311.7,3.01953]
[1722351952166,10.48841,3313.0,3311.8,3.0195]
[1722351952368,0.55,3312.9,3311.9,3.32129]
[1722351952594,3.56851,3312.9,3311.9,0.30195]
[1722351952795,0.55,3312.9,3311.9,3.32133]
[1722351952993,7.47,3313.0,3311.9,3.32133]
[1722351952994,7.47,3313.0,3311.9,3.32129]
[1722351953213,7.47,3313.0,3311.9,0.30195]
[1722351953413,7.47,3313.0,3312.0,0.332139]
[1722351953616,3.01899,3312.4,3311.6,3.0]
[1722351953838,0.55,3312.9,3311.0,2.4133]
[1722351954123,3.0187,3312.7,3311.6,3.01966]
[1722351954282,3.0187,3312.7,3311.7,0.301966]
[1722351954487,9.7345,3313.0,3311.7,0.301966]
[1722351954701,9.7345,3313.0,3311.7,3.01959]
[1722351954901,0.55,3312.9,3311.7,3.01959]
[1722351955107,0.55,3312.9,3311.8,0.3037]
[1722351955306,0.55,3312.9,3311.8,0.06736264]
[1722351955307,3.56855,3312.9,3311.8,0.06736264]
[1722351955626,9.7345,3313.0,3311.6,3.0]
[1722351955627,3.01901,3312.4,3311.6,3.0]
[1722351955766,3.01901,3312.4,3311.4,3.0]
[1722351955767,3.01919,3312.2,3311.9,0.06731654]
[1722351955970,3.01919,3312.2,3311.3,3.0]
[1722351956171,2.3583,3312.7,3311.1,3.0201]
[1722351956394,7.47,3312.5,3311.6,3.01961]
[1722351956772,7.47,3312.5,3311.7,0.06740875]
[1722351956972,7.47,3312.5,3311.5,3.01977]
[1722351957171,3.01905,3312.3,3311.8,0.06736264]
[1722351957513,10.48886,3312.5,3311.2,6.86332]
[1722351957514,7.47,3312.5,3311.2,3.84334]
[1722351957695,7.47,3312.5,3310.8,3.02034]
[1722351957696,3.01927,3312.1,3311.1,3.0]
[1722351957882,7.47,3312.9,3311.0,2.4551]
[1722351958070,10.48804,3313.5,3312.1,0.3037]
[1722351958269,10.48801,3313.5,3312.2,0.0603681]
[1722351958611,7.47,3313.5,3312.5,3.01886]
[1722351958786,7.47,3313.5,3312.6,0.06036811]
[1722351959176,7.47,3313.5,3312.5,3.68904293]
[1722351959397,10.48796,3313.5,3312.5,0.60981481]
[1722351959709,10.48796,3313.5,3312.2,3.0191]
[1722351959871,3.01806,3313.4,3312.4,3.01887]
[1722351960071,7.47,3313.5,3312.4,3.01887]
[1722351960288,3.01807,3313.4,3312.3,3.01904]
[1722351960487,7.47,3313.5,3312.0,3.0]
[1722351960780,3.01847,3313.0,3312.0,0.3]
[1722351960979,7.47,3313.1,3312.0,0.3]
[1722351961341,2.2571,3312.7,3311.4,3.01985]
[1722351961624,9.7271,3312.7,3310.9,2.3186]
[1722351961917,7.47,3312.7,3311.8,3.01946]
[1722351962117,7.47,3312.7,3311.6,3.01963]
[1722351962418,3.01896,3312.4,3311.4,3.01981]
[1722351962606,7.47,3312.7,3311.5,3.0]
[1722351962774,7.47,3312.7,3311.7,3.01954]
[1722351963537,15.85847,3313.0,3311.6,0.3]
[1722351963538,10.48796,3313.5,3312.4,3.0189]
[1722351963675,3.01818,3313.3,3312.5,3.06036837]
[1722351963878,3.01818,3313.3,3312.5,3.66830921]
[1722351964140,7.47,3313.5,3312.5,0.66830921]
[1722351964302,7.47,3313.5,3312.8,3.01858]
[1722351964626,7.47,3313.5,3312.9,3.01844]
[1722351964932,7.47,3313.5,3313.1,3.0183]
[1722351965127,7.47,3314.1,3313.1,0.67006847]
[1722351965278,7.47,3314.1,3313.2,3.0]
[1722351965781,7.47,3314.1,3312.7,3.01863]
[1722351965980,7.47,3314.1,3312.5,0.60794084]
[1722351965981,3.01782,3313.7,3312.8,3.0]
[1722351966207,3.01782,3313.7,3312.6,3.01868]
[1722351966208,10.48746,3314.1,3312.9,0.06036148]
[1722351966425,3.01764,3313.9,3312.9,0.30603615]
[1722351966589,10.48744,3314.1,3312.9,3.32448615]
[1722351966792,3.01767,3313.9,3312.9,0.30603615]
[1722351966995,3.0177,3313.8,3312.9,0.30603615]
[1722351967196,7.47,3314.1,3312.9,0.30603615]
[1722351967397,3.56753,3314.0,3313.0,0.06036121]
[1722351967600,7.47,3314.1,3313.1,0.06683615]
[1722351967816,7.47,3314.1,3312.9,6.34289615]
[1722351968001,7.47,3314.1,3313.1,3.01824]
[1722351968197,7.47,3314.1,3313.2,0.06679009]
[1722351968409,7.47,3314.1,3313.3,0.30850301]
[1722351968731,7.47,3314.1,3313.4,0.06669796]
[1722351969498,7.47,3314.1,3313.1,3.0]
[1722351969703,7.47,3314.1,3313.5,0.0666519]
[1722351969924,7.47,3314.1,3313.3,3.0181]
[1722351970097,7.47,3314.1,3313.6,0.06660585]
[1722351970297,7.47,3314.1,3313.4,0.30181]
[1722351970517,7.47,3314.1,3313.7,0.0665598]
[1722351970705,7.47,3314.1,3313.4,0.30181]
[1722351971244,7.47,3314.1,3313.5,0.0666519]
[1722351971410,8.23178954,3314.1,3313.5,0.0666519]
[1722351971609,11.24919954,3314.1,3312.9,6.32448615]
[1722351971920,10.48742,3314.1,3313.0,3.08522222]
[1722351972238,10.48746,3314.1,3313.1,3.0]
[1722351972443,3.01813,3313.3,3313.2,0.06428739]
[1722351972645,7.47,3314.1,3312.5,3.32255]
[1722351972646,0.55,3314.0,3312.5,3.32255]
[1722351972794,3.01766,3313.9,3312.7,3.01868]
[1722351972997,0.55,3314.0,3312.8,0.12451595]
[1722351973232,0.55,3314.0,3312.8,0.06415764]
[1722351973433,3.01766,3313.9,3312.8,0.06415764]
[1722351973645,3.56756,3314.0,3312.9,0.06035834]
[1722351973803,3.56756,3314.0,3312.8,3.01858]
[1722351973804,3.01756,3314.0,3313.0,0.37195933]
[1722351974012,3.01775,3313.8,3312.6,3.01872]
[1722351974329,8.53351754,3314.1,3312.7,3.06420372]
[1722351974533,0.55,3314.0,3312.7,0.06420372]
[1722351974851,0.55,3314.0,3312.7,0.37250509]
[1722351974852,3.01782,3313.7,3312.7,0.37250509]
[1722351975059,3.92596175,3313.9,3312.7,0.37250509]
[1722351975357,0.55,3313.8,3312.7,0.06420372]
[1722351975851,3.92603175,3313.9,3312.8,0.06036293]
[1722351976075,10.48742,3314.1,3312.9,0.06411157]
[1722351976352,3.01754,3314.0,3312.9,0.06411157]
[1722351976572,3.01754,3314.0,3312.7,3.01867]
[1722351976712,3.01773,3313.8,3313.0,0.0640655]
[1722351977070,3.01777,3313.7,3313.1,0.06401943]
[1722351977252,3.01798,3313.5,3313.1,0.06401943]
[1722351977429,3.01814,3313.3,3312.5,3.3037]
[1722351977612,0.301777,3313.7,3312.6,0.0642498]
[1722351977952,3.01873,3312.7,3311.9,2.3768]
[1722351978150,3.01873,3312.7,3311.6,3.886]
[1722351978151,3.01887,3312.5,3311.6,0.3]
[1722351978508,9.9653,3313.5,3311.6,3.31964]
[1722351978711,3.01846,3313.0,3311.8,3.32312]
[1722351979021,3.01851,3312.9,3311.8,0.3037]
[1722351979226,3.01859,3312.8,3311.8,0.3037]
[1722351979424,3.01895,3312.5,3311.7,0.331964]
[1722351979694,3.01878,3312.6,3311.6,0.3]
[1722351979813,3.01873,3312.7,3311.6,0.3]
[1722351980009,3.01836,3313.1,3311.7,0.06038133]
[1722351980212,10.48829,3313.2,3311.9,3.01935]
[1722351980418,3.5684,3313.1,3312.0,0.06037401]
[1722351980660,3.0185,3312.9,3311.6,6.90564]
[1722351980962,3.01869,3312.7,3311.7,3.0]
[1722351981168,3.01848,3313.0,3311.7,3.0]
[1722351981458,7.47,3313.2,3312.2,3.01908]
[1722351981673,7.47,3313.2,3312.3,0.06036619]
[1722351982160,2.2518,3314.0,3312.5,3.01881]
[1722351982308,3.01778,3313.7,3312.6,3.0]
[1722351982510,2.2518,3314.0,3312.6,3.0]
[1722351982825,3.0178,3313.7,3312.6,3.0]
[1722351983367,5.26935,3314.0,3312.6,6.01872]
[1722351983368,3.01769,3313.8,3312.6,6.01872]
[1722351983588,3.01814,3313.3,3312.7,0.601872]
[1722351983734,3.01823,3313.2,3312.5,3.0]
[1722351983929,7.47,3313.6,3312.4,5.4289]
[1722351983930,3.0181,3313.4,3312.4,5.4289]
[1722351984148,10.48788,3313.6,3312.4,5.4289]
[1722351984346,0.55,3313.5,3312.4,5.4289]
[1722351984548,3.01828,3313.2,3312.5,0.57368536]
[1722351984800,3.01856,3312.9,3311.9,2.4622]
[1722351985084,7.47,3313.0,3311.9,2.4622]
[1722351985232,7.47,3313.0,3312.0,0.12312]
[1722351985738,7.47,3313.0,3312.0,0.06274257]
[1722351985964,3.01864,3312.8,3312.0,0.06274257]
[1722351986167,3.01864,3312.8,3312.1,0.25249426]
[1722351986384,3.01881,3312.6,3312.1,0.25249426]
[1722351986661,10.48843,3313.0,3312.2,0.06265038]
[1722351986950,3.01897,3312.4,3311.4,2.7386]
[1722351987162,3.01905,3312.3,3311.4,2.4349]
[1722351987403,6.03781,3312.5,3311.7,0.06288088]
[1722351987576,3.01918,3312.2,3311.7,0.06288088]
[1722351987788,10.48845,3313.0,3311.7,0.06288088]
[1722351987789,3.0195,3311.8,3311.7,0.06288088]
[1722351988123,3.01938,3312.0,3310.8,10.0039]
[1722351988433,3.01889,3312.5,3310.8,10.0039]
[1722351988434,7.47,3312.2,3311.1,3.32381]
[1722351988585,7.47,3312.2,3311.3,3.01994]
[1722351988768,7.47,3312.2,3311.4,0.37473103]
[1722351989109,7.47,3312.2,3311.5,0.06038157]
[1722351989265,3.01897,3312.4,3311.5,0.06038157]
[1722351989464,3.01909,3312.3,3311.6,0.06292699]
[1722351989708,3.01914,3312.2,3311.6,0.06292699]
[1722351990066,3.01898,3312.4,3311.2,3.0]
[1722351990308,3.01891,3312.5,3311.7,0.06288088]
[1722351990523,3.01891,3312.5,3311.3,3.68230139]
[1722351990524,3.01902,3312.4,3311.3,0.602008]
[1722351990686,3.01905,3312.3,3311.8,0.06283477]
[1722351991028,10.48873,3312.7,3311.4,0.3037]
[1722351991309,7.47,3312.7,3311.6,2.3449]
[1722351991618,7.47,3312.7,3311.7,0.30970653]
[1722351991767,3.01913,3312.3,3311.7,0.30970653]
[1722351991969,7.47,3312.7,3311.7,0.30970653]
[1722351991970,10.48873,3312.7,3311.7,0.30970653]
[1722351992214,3.01937,3312.0,3311.7,0.06288088]
[1722351992369,3.01937,3312.0,3310.9,5.3927]
[1722351992370,3.0195,3311.8,3310.9,5.3927]
[1722351992566,3.0195,3311.8,3311.0,0.0632037]
[1722351992797,7.47,3312.7,3311.1,0.24559037]
[1722351993010,3.01919,3312.2,3311.1,0.54929037]
[1722351993227,3.01938,3312.0,3311.2,0.06311145]
[1722351993509,3.01956,3311.8,3311.2,0.06311145]
[1722351993717,3.0196,3311.7,3311.2,0.06311145]
[1722351993862,3.01941,3311.9,3311.2,0.06311145]
[1722351994063,0.55,3311.8,3311.2,0.06311145]
[1722351994311,0.55,3311.8,3310.9,2.3927]
[1722351994312,3.01965,3311.7,3310.9,2.3927]
[1722351994511,3.01983,3311.5,3311.3,0.06306533]
[1722351994719,3.01984,3311.5,3310.9,2.3927]
[1722351995013,3.01955,3311.8,3311.0,0.23927]
[1722351995220,3.01966,3311.7,3311.1,0.06315757]
[1722351995693,3.01984,3311.5,3311.1,0.06315757]
[1722351995890,3.01997,3311.3,3311.1,0.06315757]
[1722351996097,3.02005,3311.2,3311.1,0.06315757]
[1722351996313,3.02005,3311.2,3310.4,2.4522]
[1722351996314,3.02019,3311.1,3310.4,2.4522]
[1722351996466,3.02005,3311.2,3311.1,0.06365861]
[1722351996668,3.02015,3311.1,3310.4,2.4522]
[1722351996916,3.02013,3311.2,3310.5,0.3091554]
[1722351997082,3.0201,3311.2,3310.5,0.3091554]
[1722351997276,3.01991,3311.4,3310.0,2.4482]
[1722351997472,3.02015,3311.1,3310.6,0.06388926]
[1722351997721,3.02015,3311.1,3310.1,3.0]
[1722351997865,3.01996,3311.3,3310.7,0.06384312]
[1722351998218,3.01996,3311.3,3310.1,3.0]
[1722351998219,7.47,3311.5,3310.4,3.02069]
[1722351998504,7.47,3311.5,3310.6,3.02059]
[1722351998713,7.47,3311.5,3310.5,5.7798044]
[1722351998871,7.47,3311.5,3311.0,3.02023]
[1722351999069,10.48909,3312.3,3311.1,0.06039513]
[1722351999270,10.48909,3312.3,3311.3,2.4138]
[1722351999584,3.01934,3312.0,3311.4,0.30813253]
[1722351999785,3.01934,3312.0,3311.5,0.06347413]
[1722351999786,3.01933,3312.0,3311.5,0.06347413]
[1722352000289,7.47,3312.3,3311.5,0.06347413]
[1722352000487,10.48909,3312.3,3311.5,0.06347413]
[1722352000709,3.01914,3312.2,3311.4,0.30813253]
[1722352000889,3.01932,3312.0,3311.6,0.06342802]
[1722352001094,3.01947,3311.9,3311.5,0.06347413]
[1722352001413,3.01947,3311.9,3311.3,2.4138]
[1722352001414,7.47,3313.1,3311.3,2.4138]
[1722352001580,3.0185,3312.9,3311.8,3.01944]
[1722352001781,3.0185,3312.9,3311.9,0.06037964]
[1722352002020,3.01873,3312.7,3312.0,0.30798196]
[1722352002205,3.01873,3312.7,3312.1,0.06319751]
[1722352002402,3.01885,3312.6,3311.9,0.06037964]
[1722352002608,3.01905,3312.3,3312.0,0.0632436]
[1722352002806,3.01918,3312.2,3311.3,5.4138]
[1722352003008,5.39385,3313.0,3311.3,5.4138]
[1722352003009,3.01928,3312.1,3311.4,0.06352025]
[1722352003216,3.01934,3312.0,3311.4,0.06352025]
[1722352003521,3.01932,3312.0,3311.4,0.06352025]
[1722352003875,3.01941,3311.9,3310.9,3.0]
[1722352004074,3.01924,3312.1,3311.0,0.60400473]
[1722352004315,3.56933,3312.0,3311.0,3.08392473]
[1722352004530,0.55,3312.0,3311.0,3.08392473]
[1722352004799,3.56932,3312.0,3311.1,3.0]
[1722352005018,0.55,3312.0,3311.2,0.06401876]
[1722352005177,0.55,3312.0,3311.2,3.32645188]
[1722352005370,2.3754,3313.0,3311.3,0.06397264]
[1722352005601,3.01887,3312.5,3311.3,0.06397264]
[1722352005814,3.01908,3312.3,3311.3,0.06397264]
[1722352006023,3.01887,3312.5,3311.4,0.36940745]
[1722352006219,3.0191,3312.3,3311.4,0.36940745]
[1722352006402,3.01864,3312.8,3311.6,2.2729]
[1722352006735,3.01845,3313.0,3311.8,3.01944]
[1722352006872,3.01845,3313.0,3311.9,0.06038205]
[1722352006873,3.01869,3312.7,3311.9,0.06038205]
[1722352007188,3.01869,3312.7,3312.0,0.06359253]
[1722352007189,3.01902,3312.4,3312.0,0.06359253]
[1722352007528,3.01902,3312.4,3311.6,2.2729]
[1722352007742,0.301869,3312.7,3312.1,0.06339183]
[1722352007743,3.01914,3312.2,3312.1,0.06339183]
[1722352008028,3.320579,3312.7,3311.2,3.30640188]
[1722352008191,0.55,3312.2,3311.3,0.63133844]
[1722352008392,0.55,3312.1,3311.3,0.63133844]
[1722352008610,3.56923,3312.1,3311.3,0.63133844]
[1722352008819,3.01949,3311.9,3311.3,0.63133844]
[1722352009205,3.01932,3312.0,3311.3,0.63133844]
[1722352009417,0.55,3312.1,3311.4,0.39377403]
[1722352009608,0.55,3312.1,3311.5,0.06364851]
[1722352009790,3.56928,3312.1,3311.5,0.06364851]
[1722352009994,3.01955,3311.8,3311.5,0.06364851]
[1722352010195,3.01949,3311.9,3311.1,2.3696]
[1722352010491,3.5695,3311.8,3311.2,0.06382427]
[1722352010721,0.55,3312.1,3311.2,0.06382427]
[1722352011233,7.47,3312.2,3311.3,0.06039294]
[1722352011655,7.47,3312.2,3311.7,3.01951]
[1722352011960,7.47,3313.0,3312.1,3.01918]
[1722352012245,7.47,3313.0,3311.8,2.79291573]
[1722352012246,3.01868,3312.7,3312.2,0.06336818]
[1722352012550,3.0185,3312.9,3311.9,3.0]
[1722352012854,3.0185,3312.9,3312.0,0.8688441]
[1722352013148,7.47,3313.0,3312.1,0.06340929]
[1722352013346,7.47,3313.0,3312.1,0.12378699]
[1722352013701,7.47,3313.0,3312.1,3.14300699]
[1722352013895,7.47,3313.0,3312.1,6.16218699]
[1722352014168,7.78583507,3313.7,3312.2,0.70310311]
[1722352014302,3.01786,3313.6,3312.5,0.3037]
[1722352014648,3.01786,3313.6,3312.6,0.06304422]
[1722352014649,3.01787,3313.6,3312.6,0.06304422]
[1722352014795,7.47,3313.7,3312.6,3.01876]
[1722352015001,7.47,3313.7,3312.7,0.36478441]
[1722352015230,7.47,3313.7,3312.7,0.06290841]
[1722352015231,3.01791,3313.6,3312.7,0.06290841]
[1722352015443,3.01791,3313.6,3312.3,2.4908]
[1722352015444,3.01788,3313.6,3312.5,3.01886]
[1722352015648,10.48777,3313.7,3312.8,0.06286233]
[1722352015862,3.01788,3313.6,3312.4,3.01891]
[1722352015995,11.536547,3313.7,3312.9,0.06281625]
[1722352016201,7.47,3313.7,3312.6,6.01872]
[1722352016445,7.47,3313.7,3313.0,0.06273779]
[1722352016655,7.47,3313.7,3312.9,6.07885192]
[1722352016957,7.47,3313.7,3313.2,2.4972]
[1722352017335,7.47,3313.7,3313.3,0.06259959]
[1722352017646,7.47,3313.7,3313.2,2.4972]
[1722352017796,7.47,3313.7,3313.4,0.06227436]
[1722352018004,7.47,3313.7,3313.2,2.4972]
[1722352018244,7.47,3313.7,3313.5,0.0622283]
[1722352018547,10.48779,3313.7,3313.5,0.0622283]
[1722352018711,10.48779,3313.7,3312.8,3.0]
[1722352018900,10.48779,3313.7,3312.7,2.4592]
[1722352018901,10.48779,3313.7,3312.7,5.4592]
[1722352019100,3.01787,3313.6,3312.7,5.4592]
[1722352019344,3.01792,3313.6,3312.8,3.60847077]
[1722352019554,3.01817,3313.3,3312.8,0.06255077]
[1722352019750,3.01836,3313.1,3312.8,0.06255077]
[1722352019932,0.55,3313.6,3312.3,3.01903]
[1722352019933,0.55,3313.2,3312.3,3.01903]
[1722352020131,0.55,3313.3,3312.4,3.01895]
[1722352020308,0.55,3313.3,3312.5,0.301895]
[1722352020647,3.01863,3312.8,3312.6,0.06043782]
[1722352020803,3.01863,3312.8,3311.7,3.01954]
[1722352020804,3.01827,3313.2,3312.1,3.01915]
[1722352021008,7.47,3313.3,3312.2,0.06062217]
[1722352021208,7.47,3313.3,3312.3,3.01896]
[1722352021411,7.47,3313.3,3312.4,3.65901422]
[1722352021746,10.48814,3313.3,3312.4,0.06052999]
[1722352022051,0.55,3313.2,3312.0,3.01932]
[1722352022213,0.55,3313.2,3312.5,0.06048391]
[1722352022419,0.55,3313.2,3312.4,3.01894]
[1722352022599,0.55,3313.2,3312.6,0.06043782]
[1722352022805,7.47,3313.3,3312.6,0.43478337]
[1722352023141,10.48782,3313.7,3312.6,2.65971269]
[1722352023455,10.48782,3313.7,3312.7,6.64685511]
[1722352023456,7.47,3313.7,3312.7,6.64685511]
[1722352023660,7.47,3313.7,3312.7,3.62824901]